[Event "Schack-SM 2024: Mastarklassen"]
[Site "Fortnox Arena, Hejaregatan 5, Vaxjo, Sweden"]
[Date "2024.07.05"]
[Round "7.7"]
[White "Walinder, Lars"]
[Black "Willstedt, Lukas"]
[Result "1/2-1/2"]
[TimeControl "90 minutes for 40 moves + 30 minutes for the rest of the game + 30 seconds per move from move one."]
[WhiteTitle "FM"]
[WhiteElo "2233"]
[BlackElo "2082"]

1. c4 {[%clk 01:30:58]} {[%emt 02:37:24]} e6 {[%clk 01:30:58]} {[%emt
00:00:04]} 2. Nc3 {[%clk 01:31:19]} {[%emt 00:00:08]} Nf6 {[%clk 01:29:29]}
{[%emt 00:01:59]} 3. Nf3 {[%clk 01:31:31]} {[%emt 00:00:17]} d5 {[%clk
01:29:21]} {[%emt 00:00:38]} 4. e3 {[%clk 01:31:52]} {[%emt 00:00:10]} Be7
{[%clk 01:29:19]} {[%emt 00:00:32]} 5. b3 {[%clk 01:32:06]} {[%emt 00:00:16]}
O-O {[%clk 01:28:43]} {[%emt 00:01:07]} 6. Bb2 {[%clk 01:32:24]} {[%emt
00:00:10]} c5 {[%clk 01:28:31]} {[%emt 00:00:43]} 7. cxd5 {[%clk 01:29:36]}
{[%emt 00:03:18]} exd5 {[%clk 01:28:48]} {[%emt 00:00:13]} 8. d4 {[%clk
01:30:00]} {[%emt 00:00:07]} Bg4 {[%clk 01:27:56]} {[%emt 00:01:21]} 9. Be2
{[%clk 01:29:29]} {[%emt 00:01:01]} Nc6 {[%clk 01:27:56]} {[%emt 00:00:29]} 10.
O-O {[%clk 01:28:59]} {[%emt 00:00:59]} Qd7 {[%clk 01:22:52]} {[%emt 00:05:35]}
11. dxc5 {[%clk 01:25:17]} {[%emt 00:04:12]} Bxc5 {[%clk 01:23:20]} {[%emt
00:00:03]} 12. Rc1 {[%clk 01:24:29]} {[%emt 00:01:17]} Be7 {[%clk 01:22:35]}
{[%emt 00:01:15]} 13. Nd4 {[%clk 01:15:12]} {[%emt 00:09:48]} Bxe2 {[%clk
01:20:26]} {[%emt 00:02:40]} 14. Ncxe2 {[%clk 01:08:40]} {[%emt 00:07:01]} Rac8
{[%clk 01:20:08]} {[%emt 00:00:47]} 15. Nf4 {[%clk 01:03:19]} {[%emt 00:05:52]}
Rfd8 {[%clk 01:17:16]} {[%emt 00:03:22]} 16. Qe2 {[%clk 00:58:29]} {[%emt
00:05:19]} Ne4 {[%clk 01:12:48]} {[%emt 00:05:00]} 17. Rfd1 {[%clk 00:53:38]}
{[%emt 00:05:21]} Nxd4 {[%clk 00:57:31]} {[%emt 00:15:47]} 18. Bxd4 {[%clk
00:52:55]} {[%emt 00:01:13]} Bf6 {[%clk 00:57:01]} {[%emt 00:00:59]} 19. Rxc8
{[%clk 00:50:01]} {[%emt 00:03:24]} Qxc8 {[%clk 00:57:02]} {[%emt 00:00:30]} 20.
Bxf6 {[%clk 00:46:32]} {[%emt 00:03:59]} Nxf6 {[%clk 00:57:06]} {[%emt
00:00:26]} 21. Qd3 {[%clk 00:42:17]} {[%emt 00:04:45]} Rd7 {[%clk 00:49:11]}
{[%emt 00:08:24]} 22. h3 {[%clk 00:41:05]} {[%emt 00:01:42]} Qe8 {[%clk
00:46:27]} {[%emt 00:03:12]} 23. Qb5 {[%clk 00:33:02]} {[%emt 00:08:35]} a6
{[%clk 00:43:33]} {[%emt 00:03:24]} 24. Qc5 {[%clk 00:31:25]} {[%emt 00:02:07]}
Qf8 {[%clk 00:40:41]} {[%emt 00:03:23]} 25. Qc2 {[%clk 00:29:38]} {[%emt
00:02:16]} h6 {[%clk 00:37:47]} {[%emt 00:03:24]} 26. Rd4 {[%clk 00:29:20]}
{[%emt 00:00:49]} Qd6 {[%clk 00:35:16]} {[%emt 00:03:01]} 27. Qf5 {[%clk
00:19:16]} {[%emt 00:10:34]} Qc6 {[%clk 00:32:16]} {[%emt 00:03:32]} 28. g4
{[%clk 00:17:35]} {[%emt 00:02:10]} g6 {[%clk 00:31:47]} {[%emt 00:01:00]}
1/2-1/2

[Event "Schack-SM 2024: Mastarklassen"]
[Site "Fortnox Arena, Hejaregatan 5, Vaxjo, Sweden"]
[Date "2024.07.05"]
[Round "7.8"]
[White "Dingertz, Erik"]
[Black "Lindborg, Patrik"]
[Result "1-0"]
[TimeControl "90 minutes for 40 moves + 30 minutes for the rest of the game + 30 seconds per move from move one."]
[WhiteElo "2081"]
[BlackElo "2162"]

1. d4 {[%clk 01:30:55]} {[%emt 00:00:04]} Nf6 {[%clk 01:30:59]} {[%emt
00:00:03]} 2. c4 {[%clk 01:31:10]} {[%emt 00:00:16]} g6 {[%clk 01:31:27]}
{[%emt 00:00:02]} 3. Nc3 {[%clk 01:30:43]} {[%emt 00:00:56]} Bg7 {[%clk
01:31:47]} {[%emt 00:00:11]} 4. e4 {[%clk 01:30:36]} {[%emt 00:00:35]} d6
{[%clk 01:32:14]} {[%emt 00:00:03]} 5. Nf3 {[%clk 01:30:51]} {[%emt 00:00:16]}
O-O {[%clk 01:32:25]} {[%emt 00:00:18]} 6. Be2 {[%clk 01:30:53]} {[%emt
00:00:28]} Bg4 {[%clk 01:32:51]} {[%emt 00:00:03]} 7. Be3 {[%clk 01:30:20]}
{[%emt 00:01:04]} Nfd7 {[%clk 01:32:31]} {[%emt 00:00:50]} 8. Ng1 {[%clk
01:30:35]} {[%emt 00:00:14]} Bxe2 {[%clk 01:32:56]} {[%emt 00:00:06]} 9. Ngxe2
{[%clk 01:31:03]} {[%emt 00:00:03]} c5 {[%clk 01:33:10]} {[%emt 00:00:16]} 10.
O-O {[%clk 01:31:28]} {[%emt 00:00:05]} Nc6 {[%clk 01:30:13]} {[%emt 00:03:26]}
11. Rc1 {[%clk 01:23:36]} {[%emt 00:08:21]} cxd4 {[%clk 01:22:32]} {[%emt
00:08:09]} 12. Nxd4 {[%clk 01:24:03]} {[%emt 00:00:07]} Nxd4 {[%clk 01:18:03]}
{[%emt 00:04:58]} 13. Bxd4 {[%clk 01:24:27]} {[%emt 00:00:06]} Bxd4 {[%clk
01:18:28]} {[%emt 00:00:06]} 14. Qxd4 {[%clk 01:24:52]} {[%emt 00:00:04]} Nf6
{[%clk 01:18:45]} {[%emt 00:00:13]} 15. Nd5 {[%clk 01:22:45]} {[%emt 00:02:37]}
Nxd5 {[%clk 01:17:23]} {[%emt 00:01:52]} 16. exd5 {[%clk 01:23:08]} {[%emt
00:00:08]} Qa5 {[%clk 01:12:24]} {[%emt 00:05:29]} 17. Rfe1 {[%clk 01:19:20]}
{[%emt 00:04:17]} Rfe8 {[%clk 01:12:17]} {[%emt 00:00:37]} 18. Re3 {[%clk
01:19:14]} {[%emt 00:00:35]} f6 {[%clk 01:01:50]} {[%emt 00:10:58]} 19. h4
{[%clk 01:17:00]} {[%emt 00:02:43]} Qb6 {[%clk 00:56:15]} {[%emt 00:06:06]} 20.
Qd2 {[%clk 01:15:32]} {[%emt 00:01:57]} Qc7 {[%clk 00:46:35]} {[%emt 00:10:10]}
21. h5 {[%clk 01:11:35]} {[%emt 00:04:27]} g5 {[%clk 00:46:17]} {[%emt
00:00:49]} 22. h6 {[%clk 01:04:33]} {[%emt 00:07:31]} Qd7 {[%clk 00:42:59]}
{[%emt 00:03:48]} 23. Re6 {[%clk 01:03:31]} {[%emt 00:01:32]} Kf7 {[%clk
00:40:44]} {[%emt 00:02:46]} 24. Rce1 {[%clk 01:01:59]} {[%emt 00:02:01]} Rg8
{[%clk 00:39:36]} {[%emt 00:01:38]} 25. Rxe7+ {[%clk 00:53:46]} {[%emt
00:08:43]} Qxe7 {[%clk 00:39:53]} {[%emt 00:00:13]} 26. Rxe7+ {[%clk 00:54:12]}
{[%emt 00:00:05]} Kxe7 {[%clk 00:40:11]} {[%emt 00:00:12]} 27. Qe3+ {[%clk
00:54:32]} {[%emt 00:00:09]} Kf7 {[%clk 00:39:20]} {[%emt 00:01:21]} 28. Qe4
{[%clk 00:54:45]} {[%emt 00:00:16]} Rh8 {[%clk 00:36:42]} {[%emt 00:03:09]} 29.
Qe6+ {[%clk 00:55:12]} {[%emt 00:00:03]} Kg6 {[%clk 00:37:06]} {[%emt
00:00:06]} 30. Qxd6 {[%clk 00:55:39]} {[%emt 00:00:03]} Rae8 {[%clk 00:37:09]}
{[%emt 00:00:27]} 31. Qd7 {[%clk 00:54:50]} {[%emt 00:01:18]} Kxh6 {[%clk
00:36:41]} {[%emt 00:01:00]} 32. Qxb7 {[%clk 00:54:50]} {[%emt 00:00:30]} Re4
{[%clk 00:36:02]} {[%emt 00:01:08]} 33. Qf7 {[%clk 00:54:28]} {[%emt 00:00:48]}
Rhe8 {[%clk 00:35:31]} {[%emt 00:01:05]} 34. d6 {[%clk 00:53:41]} {[%emt
00:01:18]} Re1+ {[%clk 00:33:14]} {[%emt 00:02:46]} 35. Kh2 {[%clk 00:54:07]}
{[%emt 00:00:04]} R8e4 {[%clk 00:33:40]} {[%emt 00:00:06]} 36. d7 {[%clk
00:52:08]} {[%emt 00:02:26]} Rh4+ {[%clk 00:33:11]} {[%emt 00:00:59]} 37. Kg3
{[%clk 00:52:34]} {[%emt 00:00:04]} Ree4 {[%clk 00:33:37]} {[%emt 00:00:04]} 38.
Qxf6+ {[%clk 00:52:53]} {[%emt 00:00:11]} Kh5 {[%clk 00:33:57]} {[%emt
00:00:11]} 39. f3 {[%clk 00:52:46]} {[%emt 00:00:36]} 1-0

[Event "Schack-SM 2024: Mastarklassen"]
[Site "Fortnox Arena, Hejaregatan 5, Vaxjo, Sweden"]
[Date "2024.07.05"]
[Round "7.9"]
[White "Johnson, Daniel"]
[Black "Joensson, Oscar"]
[Result "1-0"]
[TimeControl "90 minutes for 40 moves + 30 minutes for the rest of the game + 30 seconds per move from move one."]
[WhiteElo "2126"]
[BlackElo "1989"]

1. d4 {[%clk 01:18:12]} {[%emt 00:12:43]} d5 {[%clk 01:30:55]} {[%emt
00:00:10]} 2. c4 {[%clk 01:18:22]} {[%emt 00:00:20]} e6 {[%clk 01:31:21]}
{[%emt 00:00:04]} 3. Nc3 {[%clk 01:18:44]} {[%emt 00:00:08]} Nf6 {[%clk
01:31:46]} {[%emt 00:00:05]} 4. Nf3 {[%clk 01:18:53]} {[%emt 00:00:22]} a6
{[%clk 01:29:31]} {[%emt 00:02:44]} 5. cxd5 {[%clk 01:17:11]} {[%emt 00:02:11]}
exd5 {[%clk 01:29:56]} {[%emt 00:00:06]} 6. Bg5 {[%clk 01:16:59]} {[%emt
00:00:42]} Be6 {[%clk 01:24:56]} {[%emt 00:05:30]} 7. e3 {[%clk 01:14:29]}
{[%emt 00:03:00]} Be7 {[%clk 01:16:42]} {[%emt 00:08:44]} 8. Bd3 {[%clk
01:12:42]} {[%emt 00:02:16]} Nbd7 {[%clk 01:08:20]} {[%emt 00:08:54]} 9. O-O
{[%clk 01:12:37]} {[%emt 00:00:35]} h6 {[%clk 00:58:34]} {[%emt 00:10:16]} 10.
Bh4 {[%clk 01:12:49]} {[%emt 00:00:17]} O-O {[%clk 00:52:37]} {[%emt 00:06:27]}
11. Rc1 {[%clk 01:11:33]} {[%emt 00:01:45]} Nh5 {[%clk 00:37:54]} {[%emt
00:15:13]} 12. Bxe7 {[%clk 01:05:07]} {[%emt 00:06:57]} Qxe7 {[%clk 00:38:16]}
{[%emt 00:00:07]} 13. Ne5 {[%clk 01:05:34]} {[%emt 00:00:03]} Nxe5 {[%clk
00:22:29]} {[%emt 00:16:18]} 14. dxe5 {[%clk 01:05:41]} {[%emt 00:00:24]} g6
{[%clk 00:22:04]} {[%emt 00:00:54]} 15. Be2 {[%clk 01:03:04]} {[%emt 00:03:07]}
Qh4 {[%clk 00:14:58]} {[%emt 00:07:36]} 16. Bxh5 {[%clk 00:53:18]} {[%emt
00:10:17]} Qxh5 {[%clk 00:12:37]} {[%emt 00:02:50]} 17. Qxh5 {[%clk 00:49:18]}
{[%emt 00:04:30]} gxh5 {[%clk 00:13:01]} {[%emt 00:00:06]} 18. Ne2 {[%clk
00:49:42]} {[%emt 00:00:05]} Rac8 {[%clk 00:10:55]} {[%emt 00:02:36]} 19. b4
{[%clk 00:48:06]} {[%emt 00:02:06]} c6 {[%clk 00:10:31]} {[%emt 00:00:55]} 20.
Rc3 {[%clk 00:45:30]} {[%emt 00:03:05]} Rc7 {[%clk 00:09:42]} {[%emt 00:01:20]}
21. Rfc1 {[%clk 00:40:39]} {[%emt 00:05:21]} Rfc8 {[%clk 00:08:54]} {[%emt
00:01:17]} 22. h4 {[%clk 00:38:20]} {[%emt 00:02:48]} b6 {[%clk 00:03:54]}
{[%emt 00:05:32]} 23. Nf4 {[%clk 00:35:01]} {[%emt 00:03:49]} c5 {[%clk
00:03:28]} {[%emt 00:00:56]} 24. Nxh5 {[%clk 00:33:33]} {[%emt 00:01:57]} c4
{[%clk 00:03:27]} {[%emt 00:00:32]} 25. Rd1 {[%clk 00:33:32]} {[%emt 00:00:31]}
Rd8 {[%clk 00:03:06]} {[%emt 00:00:51]} 26. Rd4 {[%clk 00:33:29]} {[%emt
00:00:32]} Kh8 {[%clk 00:02:37]} {[%emt 00:01:00]} 27. Nf6 {[%clk 00:33:05]}
{[%emt 00:00:53]} b5 {[%clk 00:02:34]} {[%emt 00:00:34]} 28. e4 {[%clk
00:32:54]} {[%emt 00:00:41]} a5 {[%clk 00:01:12]} {[%emt 00:01:52]} 29. a3
{[%clk 00:32:12]} {[%emt 00:01:12]} axb4 {[%clk 00:01:28]} {[%emt 00:00:14]} 30.
axb4 {[%clk 00:32:38]} {[%emt 00:00:04]} Ra7 {[%clk 00:00:51]} {[%emt
00:01:07]} 31. exd5 {[%clk 00:31:01]} {[%emt 00:02:07]} Ra4 {[%clk 00:00:57]}
{[%emt 00:00:24]} 32. Rg3 {[%clk 00:24:36]} {[%emt 00:06:54]} Bc8 {[%clk
00:00:38]} {[%emt 00:00:49]} 33. e6 {[%clk 00:24:18]} {[%emt 00:00:49]} 1-0

[Event "Schack-SM 2024: Mastarklassen"]
[Site "Fortnox Arena, Hejaregatan 5, Vaxjo, Sweden"]
[Date "2024.07.05"]
[Round "7.10"]
[White "Sundin, Emanuel"]
[Black "Carlstrom, Niklas"]
[Result "1/2-1/2"]
[TimeControl "90 minutes for 40 moves + 30 minutes for the rest of the game + 30 seconds per move from move one."]
[WhiteElo "2165"]
[BlackElo "2100"]

1. e4 {[%clk 01:30:56]} {[%emt 00:00:03]} e5 {[%clk 01:30:36]} {[%emt
00:00:23]} 2. Nf3 {[%clk 01:30:00]} {[%emt 00:01:27]} Nc6 {[%clk 01:30:48]}
{[%emt 00:00:17]} 3. Bc4 {[%clk 01:28:15]} {[%emt 00:02:16]} Nf6 {[%clk
01:30:49]} {[%emt 00:00:29]} 4. Ng5 {[%clk 01:24:56]} {[%emt 00:03:50]} d5
{[%clk 01:30:58]} {[%emt 00:00:20]} 5. exd5 {[%clk 01:25:20]} {[%emt 00:00:06]}
Na5 {[%clk 01:31:16]} {[%emt 00:00:11]} 6. Bb5+ {[%clk 01:25:42]} {[%emt
00:00:10]} Bd7 {[%clk 01:31:30]} {[%emt 00:00:15]} 7. Qe2 {[%clk 01:24:02]}
{[%emt 00:02:11]} Be7 {[%clk 01:30:10]} {[%emt 00:01:48]} 8. Nf3 {[%clk
01:17:29]} {[%emt 00:07:04]} O-O {[%clk 01:25:12]} {[%emt 00:05:28]} 9. Bxd7
{[%clk 01:14:52]} {[%emt 00:03:08]} Qxd7 {[%clk 01:24:17]} {[%emt 00:01:24]} 10.
Nxe5 {[%clk 01:10:07]} {[%emt 00:05:15]} Qxd5 {[%clk 01:23:36]} {[%emt
00:01:11]} 11. O-O {[%clk 01:08:53]} {[%emt 00:01:44]} Bd6 {[%clk 01:22:12]}
{[%emt 00:01:54]} 12. Ng4 {[%clk 01:03:19]} {[%emt 00:06:04]} Nxg4 {[%clk
01:13:35]} {[%emt 00:09:06]} 13. Qxg4 {[%clk 01:03:11]} {[%emt 00:00:39]} f5
{[%clk 01:13:05]} {[%emt 00:00:59]} 14. Qd1 {[%clk 00:45:04]} {[%emt 00:18:39]}
Qe5 {[%clk 01:01:12]} {[%emt 00:12:22]} 15. f4 {[%clk 00:37:54]} {[%emt
00:07:41]} Qd4+ {[%clk 00:53:33]} {[%emt 00:08:07]} 16. Kh1 {[%clk 00:36:52]}
{[%emt 00:01:33]} Bxf4 {[%clk 00:50:33]} {[%emt 00:03:30]} 17. d3 {[%clk
00:28:33]} {[%emt 00:08:49]} 1/2-1/2

[Event "Schack-SM 2024: Mastarklassen"]
[Site "Fortnox Arena, Hejaregatan 5, Vaxjo, Sweden"]
[Date "2024.07.05"]
[Round "7.11"]
[White "Ask, Josef"]
[Black "Malm, Simon 1995"]
[Result "1-0"]
[TimeControl "90 minutes for 40 moves + 30 minutes for the rest of the game + 30 seconds per move from move one."]
[WhiteTitle "FM"]
[WhiteElo "2136"]
[BlackElo "1948"]

1. c4 {[%clk 01:30:48]} {[%emt 00:00:04]} e6 {[%clk 01:30:24]} {[%emt
00:00:36]} 2. g3 {[%clk 01:29:29]} {[%emt 00:01:49]} d5 {[%clk 01:30:48]}
{[%emt 00:00:06]} 3. Bg2 {[%clk 01:28:05]} {[%emt 00:01:54]} dxc4 {[%clk
01:30:42]} {[%emt 00:00:37]} 4. Nf3 {[%clk 01:27:01]} {[%emt 00:01:34]} Nd7
{[%clk 01:20:31]} {[%emt 00:10:39]} 5. Qa4 {[%clk 01:24:32]} {[%emt 00:03:00]}
a6 {[%clk 01:17:36]} {[%emt 00:03:26]} 6. Qxc4 {[%clk 01:24:36]} {[%emt
00:00:25]} b5 {[%clk 01:16:37]} {[%emt 00:01:30]} 7. Qc2 {[%clk 01:22:40]}
{[%emt 00:02:26]} Bb7 {[%clk 01:16:18]} {[%emt 00:00:49]} 8. O-O {[%clk
01:17:39]} {[%emt 00:05:31]} Ngf6 {[%clk 01:15:18]} {[%emt 00:01:30]} 9. b3
{[%clk 01:13:26]} {[%emt 00:04:43]} Be7 {[%clk 01:13:48]} {[%emt 00:02:00]} 10.
Bb2 {[%clk 01:13:10]} {[%emt 00:00:46]} c5 {[%clk 01:09:12]} {[%emt 00:05:06]}
11. d3 {[%clk 01:07:24]} {[%emt 00:06:17]} O-O {[%clk 01:09:09]} {[%emt
00:00:32]} 12. Nbd2 {[%clk 01:07:10]} {[%emt 00:00:44]} Nd5 {[%clk 01:05:06]}
{[%emt 00:04:32]} 13. Ne4 {[%clk 01:02:40]} {[%emt 00:05:01]} f5 {[%clk
01:03:34]} {[%emt 00:02:01]} 14. Ned2 {[%clk 01:02:13]} {[%emt 00:00:57]} Nb4
{[%clk 01:00:29]} {[%emt 00:03:35]} 15. Qb1 {[%clk 01:01:37]} {[%emt 00:01:06]}
Bf6 {[%clk 00:59:39]} {[%emt 00:01:20]} 16. Rc1 {[%clk 00:59:31]} {[%emt
00:02:36]} Rc8 {[%clk 00:57:21]} {[%emt 00:02:49]} 17. a4 {[%clk 00:54:32]}
{[%emt 00:05:28]} Qb6 {[%clk 00:50:32]} {[%emt 00:07:19]} 18. Bxf6 {[%clk
00:52:42]} {[%emt 00:02:20]} Nxf6 {[%clk 00:50:02]} {[%emt 00:01:00]} 19. Qb2
{[%clk 00:50:24]} {[%emt 00:02:48]} Rfd8 {[%clk 00:48:22]} {[%emt 00:02:10]} 20.
Qa3 {[%clk 00:47:35]} {[%emt 00:03:20]} Ra8 {[%clk 00:43:17]} {[%emt 00:05:35]}
21. d4 {[%clk 00:44:01]} {[%emt 00:04:04]} Bxf3 {[%clk 00:25:53]} {[%emt
00:17:54]} 22. Nxf3 {[%clk 00:42:29]} {[%emt 00:02:01]} bxa4 {[%clk 00:22:45]}
{[%emt 00:03:39]} 23. dxc5 {[%clk 00:40:30]} {[%emt 00:02:28]} Qa5 {[%clk
00:20:15]} {[%emt 00:03:01]} 24. Qxa4 {[%clk 00:38:48]} {[%emt 00:02:12]} Qxa4
{[%clk 00:19:03]} {[%emt 00:01:41]} 25. Rxa4 {[%clk 00:39:06]} {[%emt
00:00:13]} Rab8 {[%clk 00:18:42]} {[%emt 00:00:51]} 26. Ne5 {[%clk 00:37:38]}
{[%emt 00:01:57]} Rdc8 {[%clk 00:18:07]} {[%emt 00:01:06]} 27. Ra5 {[%clk
00:31:25]} {[%emt 00:06:42]} Nfd5 {[%clk 00:15:40]} {[%emt 00:02:58]} 28. c6
{[%clk 00:24:55]} {[%emt 00:07:00]} Rc7 {[%clk 00:12:58]} {[%emt 00:03:12]} 29.
Rc4 {[%clk 00:21:30]} {[%emt 00:03:55]} Rb6 {[%clk 00:09:43]} {[%emt 00:03:45]}
30. Rac5 {[%clk 00:20:02]} {[%emt 00:01:57]} g6 {[%clk 00:09:22]} {[%emt
00:00:51]} 31. e4 {[%clk 00:16:31]} {[%emt 00:04:01]} fxe4 {[%clk 00:08:49]}
{[%emt 00:01:03]} 32. Bh3 {[%clk 00:16:27]} {[%emt 00:00:34]} Kg7 {[%clk
00:07:18]} {[%emt 00:02:02]} 33. Bxe6 {[%clk 00:15:17]} {[%emt 00:01:41]} Ne7
{[%clk 00:07:47]} 34. Bd7 {[%clk 00:13:39]} {[%emt 00:02:08]} Nd3 {[%clk
00:07:17]} {[%emt 00:01:00]} 35. Nxd3 {[%clk 00:07:23]} {[%emt 00:06:45]} exd3
{[%clk 00:07:46]} {[%emt 00:00:01]} 36. Rd4 {[%clk 00:06:29]} {[%emt 00:01:24]}
Rxb3 {[%clk 00:07:44]} {[%emt 00:00:32]} 37. Kg2 {[%clk 00:05:29]} {[%emt
00:01:31]} a5 {[%clk 00:07:39]} {[%emt 00:00:35]} 38. Be6 {[%clk 00:05:05]}
{[%emt 00:00:54]} Rb6 {[%clk 00:05:09]} {[%emt 00:03:00]} 39. Bd7 {[%clk
00:04:22]} {[%emt 00:01:13]} Rb3 {[%clk 00:03:44]} {[%emt 00:01:55]} 40. Be8
{[%clk 00:03:10]} {[%emt 00:01:42]} Rb8 {[%clk 00:01:31]} {[%emt 00:02:42]} 41.
Bd7 {[%clk 00:01:51]} {[%emt 00:01:50]} Rd8 {[%clk 00:25:42]} {[%emt 00:06:18]}
42. Rxd3 {[%clk 00:25:57]} {[%emt 00:06:24]} Nxc6 {[%clk 00:25:34]} {[%emt
00:00:37]} 43. Bf5 {[%clk 00:25:14]} {[%emt 00:01:11]} Rxd3 {[%clk 00:14:02]}
{[%emt 00:12:05]} 44. Bxd3 {[%clk 00:25:39]} {[%emt 00:00:05]} a4 {[%clk
00:13:21]} {[%emt 00:01:11]} 45. Rc3 {[%clk 00:24:24]} {[%emt 00:01:44]} a3
{[%clk 00:11:29]} {[%emt 00:02:24]} 46. Rxa3 {[%clk 00:24:32]} {[%emt
00:00:22]} Ne5 {[%clk 00:11:05]} {[%emt 00:00:54]} 47. Be4 {[%clk 00:24:40]}
{[%emt 00:00:22]} Nd7 {[%clk 00:10:37]} {[%emt 00:00:57]} 48. h4 {[%clk
00:24:13]} {[%emt 00:00:58]} Nf6 {[%clk 00:10:58]} {[%emt 00:00:09]} 49. Bf3
{[%clk 00:23:12]} {[%emt 00:01:31]} h5 {[%clk 00:10:50]} {[%emt 00:00:37]} 50.
Re3 {[%clk 00:22:18]} {[%emt 00:01:24]} Rc4 {[%clk 00:08:29]} {[%emt 00:02:50]}
51. Re7+ {[%clk 00:22:09]} {[%emt 00:00:40]} Kh6 {[%clk 00:08:16]} {[%emt
00:00:43]} 52. Re6 {[%clk 00:21:42]} {[%emt 00:00:56]} Kg7 {[%clk 00:08:18]}
{[%emt 00:00:30]} 53. Re7+ {[%clk 00:21:05]} {[%emt 00:01:06]} Kh6 {[%clk
00:08:22]} {[%emt 00:00:26]} 54. Rf7 {[%clk 00:20:31]} {[%emt 00:01:04]} Ng4
{[%clk 00:06:19]} {[%emt 00:02:33]} 55. Bd5 {[%clk 00:19:05]} {[%emt 00:01:56]}
Rd4 {[%clk 00:06:12]} {[%emt 00:00:36]} 56. Bb3 {[%clk 00:17:36]} {[%emt
00:02:00]} Rd2 {[%clk 00:05:46]} {[%emt 00:00:56]} 57. Be6 {[%clk 00:17:26]}
{[%emt 00:00:41]} Ne5 {[%clk 00:04:48]} {[%emt 00:01:27]} 58. Ra7 {[%clk
00:13:48]} {[%emt 00:04:09]} Rd6 {[%clk 00:04:42]} {[%emt 00:00:34]} 59. Re7
{[%clk 00:11:51]} {[%emt 00:02:28]} Nc6 {[%clk 00:04:20]} {[%emt 00:00:52]} 60.
Re8 {[%clk 00:11:46]} {[%emt 00:00:35]} Kg7 {[%clk 00:03:58]} {[%emt 00:00:52]}
61. Ba2 {[%clk 00:11:23]} {[%emt 00:00:53]} Kf6 {[%clk 00:02:14]} {[%emt
00:02:15]} 62. Rg8 {[%clk 00:11:00]} {[%emt 00:00:52]} Rd8 {[%clk 00:02:13]}
{[%emt 00:00:31]} 63. Rxd8 Nxd8 {[%clk 00:02:42]} 64. Kf3 {[%clk 00:09:21]}
{[%emt 00:01:38]} Nc6 {[%clk 00:03:01]} {[%emt 00:00:10]} 65. Ke4 {[%clk
00:08:45]} {[%emt 00:01:06]} Ne7 {[%clk 00:02:52]} {[%emt 00:00:39]} 66. Bc4
{[%clk 00:08:35]} {[%emt 00:00:41]} Nf5 {[%clk 00:02:43]} {[%emt 00:00:38]} 67.
Kf4 {[%clk 00:08:15]} {[%emt 00:00:50]} Nh6 {[%clk 00:01:57]} {[%emt 00:01:16]}
68. Be2 {[%clk 00:06:53]} {[%emt 00:01:52]} Nf5 {[%clk 00:02:00]} {[%emt
00:00:27]} 69. Bd3 {[%clk 00:06:42]} {[%emt 00:00:40]} Nd4 {[%clk 00:01:57]}
{[%emt 00:00:34]} 70. Ke4 {[%clk 00:06:44]} {[%emt 00:00:29]} Nf5 {[%clk
00:02:14]} {[%emt 00:00:12]} 71. Kf4 {[%clk 00:06:35]} {[%emt 00:00:39]} Nd4
{[%clk 00:02:39]} {[%emt 00:00:05]} 72. Bc4 {[%clk 00:06:33]} {[%emt 00:00:33]}
Nf5 {[%clk 00:02:58]} {[%emt 00:00:10]} 73. Ba6 {[%clk 00:06:12]} {[%emt
00:00:52]} Nd6 {[%clk 00:02:09]} {[%emt 00:01:19]} 74. Bd3 {[%clk 00:05:54]}
{[%emt 00:00:48]} Nf7 {[%clk 00:02:13]} {[%emt 00:00:24]} 75. Bc4 {[%clk
00:05:18]} {[%emt 00:01:07]} Nd6 {[%clk 00:02:26]} {[%emt 00:00:17]} 76. Bd5
{[%clk 00:05:24]} {[%emt 00:00:25]} Nf5 {[%clk 00:02:41]} {[%emt 00:00:14]} 77.
f3 {[%clk 00:05:14]} {[%emt 00:00:40]} Nd6 {[%clk 00:01:25]} {[%emt 00:01:48]}
78. g4 {[%clk 00:05:08]} {[%emt 00:00:35]} hxg4 {[%clk 00:01:18]} {[%emt
00:00:37]} 79. fxg4 {[%clk 00:05:29]} {[%emt 00:00:08]} Ne8 {[%clk 00:00:40]}
{[%emt 00:01:08]} 80. g5+ {[%clk 00:05:43]} {[%emt 00:00:16]} Kg7 {[%clk
00:00:33]} {[%emt 00:00:37]} 81. Ke5 {[%clk 00:05:49]} {[%emt 00:00:25]} Nc7
{[%clk 00:00:38]} {[%emt 00:00:24]} 82. Bc4 {[%clk 00:05:37]} {[%emt 00:00:42]}
Ne8 {[%clk 00:00:34]} {[%emt 00:00:35]} 83. Ke6 {[%clk 00:05:28]} {[%emt
00:00:38]} Kh7 {[%clk 00:00:40]} {[%emt 00:00:25]} 84. Ke7 {[%clk 00:04:55]}
{[%emt 00:01:04]} Ng7 {[%clk 00:00:48]} {[%emt 00:00:21]} 85. Bd3 {[%clk
00:04:32]} {[%emt 00:00:51]} Nh5 {[%clk 00:00:32]} {[%emt 00:00:47]} 86. Kf7
{[%clk 00:04:32]} {[%emt 00:00:29]} Nf4 {[%clk 00:00:43]} {[%emt 00:00:21]} 87.
Be4 {[%clk 00:04:32]} {[%emt 00:00:29]} Nh3 {[%clk 00:00:34]} {[%emt 00:00:40]}
88. Bxg6 {[%clk 00:04:05]} {[%emt 00:00:56]} Kh8 {[%clk 00:01:03]} {[%emt
00:00:02]} 89. Kf6 {[%clk 00:04:05]} {[%emt 00:00:30]} Kg8 {[%clk 00:00:46]}
{[%emt 00:00:47]} 90. Bf7+ {[%clk 00:03:49]} {[%emt 00:00:45]} Kh8 {[%clk
00:00:43]} {[%emt 00:00:33]} 91. g6 {[%clk 00:03:58]} {[%emt 00:00:21]} Ng5
{[%clk 00:00:38]} {[%emt 00:00:35]} 92. g7+ {[%clk 00:04:11]} {[%emt 00:00:17]}
Kh7 {[%clk 00:01:03]} {[%emt 00:00:06]} 93. g8=Q+ {[%clk 00:04:32]} {[%emt
00:00:08]} Kh6 {[%clk 00:01:25]} {[%emt 00:00:08]} 94. hxg5 {[%clk 00:04:51]}
{[%emt 00:00:11]} 1-0